bitfinex/quotes_BTCUSD_20250727
["timestamp","ask_amount","ask_price","bid_price","bid_amount"]
[1753599518596,0.53874664,118400.0,118390.0,0.35911318]
[1753599519425,0.53030084,118400.0,118390.0,0.35911318]
[1753599519643,0.21492485,118400.0,118390.0,0.35911318]
[1753599519842,0.53030084,118400.0,118390.0,0.35911318]
[1753599521046,0.5218549,118400.0,118390.0,0.19018]
[1753599523750,0.5492479,118400.0,118390.0,0.19018]
[1753599525389,0.23387191,118400.0,118390.0,0.19018]
[1753599525612,0.5492479,118400.0,118390.0,0.19018]
[1753599531871,0.5492479,118400.0,118390.0,0.18711]
[1753599541930,0.23387191,118400.0,118390.0,0.18711]
[1753599542333,0.5492479,118400.0,118390.0,0.18711]
[1753599542921,0.5492479,118400.0,118390.0,0.17141]
[1753599545601,0.5766479,118400.0,118390.0,0.17141]
[1753599556150,0.26127191,118400.0,118390.0,0.17141]
[1753599556447,0.5766479,118400.0,118390.0,0.17141]
[1753599563260,0.24231742,118400.0,118390.0,0.35948318]
[1753599563470,0.55769341,118400.0,118390.0,0.35948318]
[1753599563655,0.5492479,118400.0,118390.0,0.35948318]
[1753599563905,0.23185191,118400.0,118390.0,0.35948318]
[1753599564117,0.5472279,118400.0,118390.0,0.35948318]
[1753599564562,0.5492179,118400.0,118390.0,0.35948318]
[1753599567481,0.24228785,118400.0,118390.0,0.35948318]
[1753599567705,0.55766384,118400.0,118390.0,0.35948318]
[1753599568506,0.38029899,118400.0,118390.0,0.36792976]
[1753599568719,0.58101088,118400.0,118390.0,0.35948318]
[1753599571903,0.57256537,118400.0,118390.0,0.35948318]
[1753599575247,0.25718938,118400.0,118390.0,0.35948318]
[1753599575457,0.57256537,118400.0,118390.0,0.35948318]
[1753599577655,0.40364646,118400.0,118390.0,0.35948318]
[1753599577858,0.40364646,118400.0,118390.0,0.36792983]
[1753599578249,0.57469537,118400.0,118390.0,0.35948318]
[1753599580038,0.56624971,118400.0,118390.0,0.35948318]
[1753599580482,0.56624971,118400.0,118390.0,0.35654318]
[1753599581146,0.55780384,118400.0,118390.0,0.35654318]
[1753599583659,0.53243084,118400.0,118390.0,0.35654318]
[1753599583862,0.53243084,118400.0,118390.0,0.34034318]
[1753599584873,0.5239849,118400.0,118390.0,0.34034318]
[1753599585232,0.5239849,118400.0,118390.0,0.17141]
[1753599591263,0.5511249,118400.0,118390.0,0.17141]
[1753599596971,0.5511249,118400.0,118390.0,0.17125]
[1753599597627,0.5511249,118400.0,118390.0,0.16924]
[1753599600430,0.23574891,118400.0,118390.0,0.16924]
[1753599600638,0.5511249,118400.0,118390.0,0.16924]
[1753599601264,0.23574891,118400.0,118390.0,0.16924]
[1753599601472,0.5511249,118400.0,118390.0,0.16924]
[1753599606468,0.23574891,118400.0,118390.0,0.16924]
[1753599606587,0.5511249,118400.0,118390.0,0.16924]
[1753599609276,0.5511249,118400.0,118390.0,0.1692]
[1753599616346,0.5764979,118400.0,118390.0,0.1692]
[1753599616515,0.5511249,118400.0,118390.0,0.1692]
[1753599624513,0.55104888,118400.0,118390.0,0.1692]
[1753599630186,0.57642088,118400.0,118390.0,0.1692]
[1753599630418,0.57642088,118400.0,118390.0,0.03984]
[1753599630651,0.57642088,118400.0,118390.0,0.16912]
[1753599635384,0.55252088,118400.0,118390.0,0.17122]
[1753599635636,0.52714888,118400.0,118390.0,0.17122]
[1753599636527,0.55252188,118400.0,118390.0,0.17122]
[1753599637795,0.55224437,118400.0,118390.0,0.17122]
[1753599638264,0.23362838,118400.0,118390.0,0.17122]
[1753599638469,0.54900437,118400.0,118390.0,0.17122]
[1753599639194,0.52363137,118400.0,118390.0,0.17122]
[1753599644418,0.54900337,118400.0,118390.0,0.17122]
[1753599647250,0.23362738,118400.0,118390.0,0.17122]
[1753599647456,0.54900337,118400.0,118390.0,0.17122]
[1753599652942,0.54900337,118400.0,118390.0,0.17118]
[1753599656426,0.57662337,118400.0,118390.0,0.17118]
[1753599657606,0.26124738,118400.0,118390.0,0.17118]
[1753599657881,0.57662337,118400.0,118390.0,0.17118]
[1753599659915,0.55196337,118400.0,118390.0,0.17118]
[1753599660131,0.54900337,118400.0,118390.0,0.17118]
[1753599664656,0.57366337,118400.0,118390.0,0.17118]
[1753599665136,0.57662337,118400.0,118390.0,0.17118]
[1753599675926,0.57662337,118400.0,118390.0,0.04194]
[1753599676134,0.57662337,118400.0,118390.0,0.17118]
[1753599680558,0.91662337,118400.0,118390.0,0.002]
[1753599680790,0.94802337,118400.0,118390.0,0.13124]
[1753599681649,0.94802337,118400.0,118390.0,0.002]
[1753599681863,0.94802337,118400.0,118390.0,0.13124]
[1753599683453,1.26339936,118400.0,118390.0,0.002]
[1753599683685,1.26339936,118400.0,118390.0,0.13124]
[1753599683891,1.03250067,118400.0,118390.0,0.13124]
[1753599684095,1.0384376,118400.0,118390.0,0.13124]
[1753599684297,1.03250067,118400.0,118390.0,0.13124]
[1753599684504,1.03250067,118400.0,118390.0,0.13024]
[1753599684917,0.63264738,118400.0,118390.0,0.13024]
[1753599685124,0.94802337,118400.0,118390.0,0.13024]
[1753599685737,0.94802337,118400.0,118390.0,0.12924]
[1753599691243,0.93162337,118400.0,118390.0,0.12924]
[1753599691457,0.17737969,118390.0,118380.0,0.1691]
[1753599691668,0.17737969,118390.0,118380.0,0.1717047]
[1753599691669,0.49477568,118390.0,118380.0,0.1717047]
[1753599692099,0.52015168,118390.0,118380.0,0.1717047]
[1753599692740,0.52015168,118390.0,118380.0,0.1727047]
[1753599692964,0.52015168,118390.0,118380.0,0.1737047]
[1753599706055,0.52015168,118390.0,118380.0,0.0442247]
[1753599706280,0.54643168,118390.0,118380.0,0.1553447]
[1753599706497,0.54643168,118390.0,118380.0,0.1317247]
[1753599706899,0.56153168,118390.0,118380.0,0.1317247]
[1753599707312,0.59873815,118390.0,118380.0,0.0024847]
[1753599707516,1.35449144,118390.0,118380.0,0.1317247]
[1753599707724,1.35449144,118390.0,118380.0,0.0024847]
[1753599707948,1.35449144,118390.0,118380.0,0.1317247]
[1753599708155,1.35449144,118390.0,118380.0,0.0024847]
[1753599708658,1.35449144,118390.0,118380.0,0.1317247]
[1753599709266,1.35449144,118390.0,118380.0,0.1297247]
[1753599716810,0.63926216,118390.0,118380.0,0.1297247]
[1753599717027,1.25411414,118390.0,118380.0,0.1297247]
[1753599728004,1.27001414,118390.0,118380.0,0.1297247]
[1753599728891,1.25411414,118390.0,118380.0,0.1297247]
[1753599731991,1.35604046,118390.0,118380.0,0.1297247]
[1753599732221,1.37194046,118390.0,118380.0,0.1297247]
[1753599732430,1.45641776,118390.0,118380.0,0.1297247]
[1753599733818,1.45611776,118390.0,118380.0,0.1297247]
[1753599734044,1.45611776,118390.0,118380.0,0.0004847]
[1753599734246,1.45611776,118390.0,118380.0,0.1297247]
[1753599735101,1.45711776,118390.0,118380.0,0.1297247]
[1753599736622,1.45811776,118390.0,118380.0,0.1297247]
[1753599737703,1.47633888,118390.0,118380.0,0.1297247]
[1753599738301,1.45811776,118390.0,118380.0,0.1297247]
[1753599744700,1.44251776,118390.0,118380.0,0.1297247]
[1753599746630,1.45871776,118390.0,118380.0,0.1297247]
[1753599746960,1.44251776,118390.0,118380.0,0.1297247]
[1753599747161,1.45871776,118390.0,118380.0,0.1297247]
[1753599748149,1.44251776,118390.0,118380.0,0.1297247]
[1753599749330,1.45881776,118390.0,118380.0,0.1297247]
[1753599753233,1.47702979,118390.0,118380.0,0.1297247]
[1753599755278,1.46072979,118390.0,118380.0,0.1297247]
[1753599757607,6.46072979,118390.0,118380.0,0.0004847]
[1753599758020,6.58996979,118390.0,118380.0,0.0004847]
[1753599758545,5.95921781,118390.0,118380.0,0.0004847]
[1753599758758,6.58996979,118390.0,118380.0,0.0004847]
[1753599760039,6.46072979,118390.0,118380.0,0.0004847]
[1753599770972,6.44562979,118390.0,118380.0,0.0004847]
[1753599771606,1.44562979,118390.0,118380.0,0.0004847]
[1753599772100,6.44562979,118390.0,118380.0,0.0004847]
[1753599772771,6.46092979,118390.0,118380.0,0.0004847]
[1753599772993,6.44562979,118390.0,118380.0,0.0004847]
[1753599774147,0.80914196,118380.0,118370.0,0.0586]
[1753599774374,0.80914196,118380.0,118370.0,0.06071]
[1753599774814,0.83452196,118380.0,118370.0,0.06071]
[1753599775207,1.28352196,118380.0,118370.0,0.06071]
[1753599775338,1.36799926,118380.0,118370.0,0.06071]
[1753599777944,1.49273303,118380.0,118370.0,0.05768]
[1753599778396,1.49373303,118380.0,118370.0,0.05768]
[1753599778600,1.49373303,118380.0,118370.0,0.06091]
[1753599779904,1.49373303,118380.0,118370.0,0.19011]
[1753599780319,0.86298105,118380.0,118370.0,0.19011]
[1753599780528,1.49373303,118380.0,118370.0,0.19011]
[1753599786861,1.49373303,118380.0,118370.0,0.18688]
[1753599797292,1.51844303,118380.0,118370.0,0.18688]
[1753599797868,1.52158303,118380.0,118370.0,0.18688]
[1753599805877,1.52158303,118380.0,118370.0,0.17068]
[1753599811001,1.52158303,118380.0,118370.0,0.16857]
[1753599816104,1.52158303,118380.0,118370.0,0.1456]
[1753599817602,1.52158303,118380.0,118370.0,0.16978]
[1753599824866,0.89083105,118380.0,118370.0,0.16978]
[1753599825081,1.52158303,118380.0,118370.0,0.16978]
[1753599831767,1.49687303,118380.0,118370.0,0.1718]
[1753599832029,1.49373303,118380.0,118370.0,0.1878]
[1753599837977,0.86298105,118380.0,118370.0,0.1878]
[1753599838213,1.40925573,118380.0,118370.0,0.1878]
[1753599841630,1.41519154,118380.0,118370.0,0.1878]
[1753599841865,1.43102038,118380.0,118370.0,0.1878]
[1753599842760,1.42310611,118380.0,118370.0,0.1878]
[1753599842970,1.43893526,118380.0,118370.0,0.1878]
[1753599843191,1.43102069,118380.0,118370.0,0.1878]
[1753599843654,0.79821871,118380.0,118370.0,0.19102]
[1753599843907,0.25880375,118380.0,118370.0,0.19102]
[1753599844148,0.57342375,118380.0,118370.0,0.19102]
[1753599844351,0.55759645,118380.0,118370.0,0.19102]
[1753599844571,0.5660436,118380.0,118370.0,0.19102]
[1753599845007,0.88141959,118380.0,118370.0,0.19102]
[1753599846725,0.5660436,118380.0,118370.0,0.19102]
[1753599846941,0.88141959,118380.0,118370.0,0.19102]
[1753599854236,0.5660436,118380.0,118370.0,0.19102]
[1753599854461,0.88141959,118380.0,118370.0,0.19102]
[1753599856753,1.19679558,118380.0,118370.0,0.19102]
[1753599858575,1.19893558,118380.0,118370.0,0.19102]
[1753599861252,1.19893558,118380.0,118370.0,0.1878]
[1753599862426,0.5681836,118380.0,118370.0,0.1878]
[1753599862636,1.19893558,118380.0,118370.0,0.1878]
[1753599867685,1.22651558,118380.0,118370.0,0.1878]
[1753599871204,0.5957636,118380.0,118370.0,0.1878]
[1753599871404,1.22651558,118380.0,118370.0,0.1878]
[1753599871629,1.27078813,118380.0,118370.0,0.1616]
[1753599871837,1.27078813,118380.0,118370.0,0.1296]
[1753599872041,1.28658813,118380.0,118370.0,0.1296]
[1753599872260,1.53321445,118380.0,118370.0,0.0004]
[1753599872670,1.56452536,118380.0,118370.0,0.0004]
[1753599872830,1.55859445,118380.0,118370.0,0.0004]
[1753599873048,1.56452526,118380.0,118370.0,0.0004]
[1753599873732,1.43492526,118380.0,118370.0,0.0004]
[1753599874114,1.56448526,118380.0,118370.0,0.0004]
[1753599875883,1.87986125,118380.0,118370.0,0.0004]
[1753599876104,1.56448526,118380.0,118370.0,0.0004]
[1753599876302,1.87986125,118380.0,118370.0,0.0004]
[1753599876564,1.90356812,118380.0,118370.0,0.0004]
[1753599876785,1.58819213,118380.0,118370.0,0.0004]
[1753599877215,1.57238755,118380.0,118370.0,0.0004]
[1753599877431,1.58819031,118380.0,118370.0,0.0004]
[1753599877865,1.9035663,118380.0,118370.0,0.0004]
[1753599878358,1.90356405,118380.0,118370.0,0.0004]
[1753599879166,1.89566401,118380.0,118370.0,0.0004]
[1753599879391,1.90356377,118380.0,118370.0,0.0004]
[1753599880217,1.90355638,118380.0,118370.0,0.0004]
[1753599881134,0.91315586,118380.0,118370.0,0.0004]
[1753599881626,1.54390784,118380.0,118370.0,0.0004]
[1753599884050,1.53798442,118380.0,118370.0,0.0004]
[1753599884269,1.5439067,118380.0,118370.0,0.0004]
[1753599885945,1.85928269,118380.0,118370.0,0.0004]
[1753599886341,1.628384,118380.0,118370.0,0.0004]
[1753599886976,1.62838416,118380.0,118370.0,0.0004]
[1753599887177,1.61328416,118380.0,118370.0,0.0004]
[1753599887567,1.92866015,118380.0,118370.0,0.0004]
[1753599887743,1.92865999,118380.0,118370.0,0.0004]
[1753599888868,1.92864983,118380.0,118370.0,0.0004]
[1753599892081,1.91285723,118380.0,118370.0,0.0004]
[1753599892324,1.92865029,118380.0,118370.0,0.0004]
[1753599892813,1.79909029,118380.0,118370.0,0.0004]
[1753599893921,1.4837143,118380.0,118370.0,0.0004]
[1753599894367,1.399237,118380.0,118370.0,0.0004]
[1753599895083,1.383437,118380.0,118370.0,0.02376]
[1753599895336,1.3293319,118380.0,118370.0,0.04214]
[1753599895583,1.34006412,118380.0,118370.0,0.04214]
[1753599895852,1.35586057,118380.0,118370.0,0.04214]
[1753599896125,1.35586068,118380.0,118370.0,0.04214]
[1753599896392,1.44033798,118380.0,118370.0,0.04214]
[1753599896685,1.42454135,118380.0,118370.0,0.04214]
[1753599896953,1.41861757,118380.0,118370.0,0.04214]
[1753599897392,1.4107192,118380.0,118370.0,0.04214]
[1753599899530,1.42652376,118380.0,118370.0,0.04214]
[1753599899926,1.4107192,118380.0,118370.0,0.04214]
[1753599900162,1.44035357,118380.0,118370.0,0.04214]
[1753599900996,1.46840357,118380.0,118370.0,0.04214]
[1753599901570,1.38392627,118380.0,118370.0,0.04214]
[1753599903805,1.35902627,118380.0,118370.0,0.04214]
[1753599906141,1.38392627,118380.0,118370.0,0.04214]
[1753599907822,1.38394363,118380.0,118370.0,0.04214]
[1753599908072,1.38394363,118380.0,118370.0,0.04006]
[1753599909127,1.46842093,118380.0,118370.0,0.04006]
[1753599911250,1.59798093,118380.0,118370.0,0.04006]
[1753599911954,1.91335692,118380.0,118370.0,0.0004]
[1753599914080,1.93158368,118380.0,118370.0,0.0004]
[1753599918883,1.93159012,118380.0,118370.0,0.0004]
[1753599919983,1.91336336,118380.0,118370.0,0.0004]
[1753599922221,1.93159083,118380.0,118370.0,0.0004]
[1753599923938,1.84711353,118380.0,118370.0,0.0004]
[1753599927759,1.84711491,118380.0,118370.0,0.0004]
[1753599928169,1.84712428,118380.0,118370.0,0.0004]
[1753599928963,1.84712505,118380.0,118370.0,0.0004]
[1753599929593,1.82889758,118380.0,118370.0,0.0004]
[1753599929857,1.89242758,118380.0,118370.0,0.0004]
[1753599931015,1.87660375,118380.0,118370.0,0.0004]
[1753599931236,1.8924277,118380.0,118370.0,0.0004]
[1753599932430,1.91065684,118380.0,118370.0,0.0004]
[1753599933504,1.8004477,118380.0,118370.0,0.04416]
[1753599933741,1.81867686,118380.0,118370.0,0.04117]
[1753599933934,1.84577692,118380.0,118370.0,0.04117]
[1753599935269,1.84577692,118380.0,118370.0,0.03914]
[1753599941743,1.84577711,118380.0,118370.0,0.03914]
[1753599942129,1.89136782,118380.0,118370.0,0.03914]
[1753599942907,1.89136806,118380.0,118370.0,0.03914]
[1753599946836,1.891369,118380.0,118370.0,0.03914]
[1753599947031,1.8731389,118380.0,118370.0,0.03914]
[1753599947235,1.891369,118380.0,118370.0,0.03914]
[1753599947654,1.891369,118380.0,118370.0,0.0004]
[1753599949159,1.906469,118380.0,118370.0,0.0004]
[1753599951529,1.891369,118380.0,118370.0,0.0004]
[1753599957112,1.906769,118380.0,118370.0,0.0004]
[1753599957488,1.90677391,118380.0,118370.0,0.0004]
[1753599959860,1.89137391,118380.0,118370.0,0.0004]
[1753599960236,1.88543887,118380.0,118370.0,0.0004]
[1753599960889,1.87752548,118380.0,118370.0,0.0004]
[1753599961096,1.8616987,118380.0,118370.0,0.0004]
[1753599961330,1.88543879,118380.0,118370.0,0.0004]
[1753599961566,1.89137381,118380.0,118370.0,0.0004]
[1753599961809,0.89965513,118380.0,118370.0,0.02452]
[1753599962065,1.50330711,118380.0,118370.0,0.04159]
[1753599963072,1.50330711,118380.0,118370.0,0.05759]
[1753599964006,1.50330706,118380.0,118370.0,0.05759]
[1753599964496,1.50330706,118380.0,118370.0,0.06068]
[1753599965309,1.50330706,118380.0,118370.0,0.05759]
[1753599966129,1.58778436,118380.0,118370.0,0.05759]
[1753599966357,1.50330706,118380.0,118370.0,0.05759]
[1753599966613,1.50330706,118380.0,118370.0,0.06068]
[1753599967694,0.87255508,118380.0,118370.0,0.06068]
[1753599967934,1.50330706,118380.0,118370.0,0.06068]
[1753599968592,1.48507696,118380.0,118370.0,0.06068]
[1753599969015,1.48293696,118380.0,118370.0,0.06068]
[1753599970644,1.48507696,118380.0,118370.0,0.06068]
[1753599970826,1.35591696,118380.0,118370.0,0.06068]
[1753599971038,1.35377696,118380.0,118370.0,0.06068]
[1753599971647,1.35377203,118380.0,118370.0,0.06068]
[1753599972264,1.3399286,118380.0,118370.0,0.06068]
[1753599973126,0.7230171,118380.0,118370.0,0.06068]
[1753599973345,1.35376908,118380.0,118370.0,0.06068]
[1753599974386,1.34783742,118380.0,118370.0,0.06068]
[1753599975899,0.71708544,118380.0,118370.0,0.06068]
[1753599976100,1.34783742,118380.0,118370.0,0.06068]
[1753599976307,1.3399286,118380.0,118370.0,0.06068]
[1753599979355,1.33991309,118380.0,118370.0,0.06068]
[1753599982008,1.34205309,118380.0,118370.0,0.06068]
[1753599982644,0.71130111,118380.0,118370.0,0.06068]
[1753599982857,1.34205309,118380.0,118370.0,0.06068]
[1753599983930,1.34205165,118380.0,118370.0,0.06068]
[1753599984140,0.71129967,118380.0,118370.0,0.06068]
[1753599984407,1.34205165,118380.0,118370.0,0.06068]
[1753599984826,1.34205165,118380.0,118370.0,0.05759]
[1753599997894,1.36978165,118380.0,118370.0,0.05759]
[1753599998363,1.37769227,118380.0,118370.0,0.05759]
[1753600000559,0.75287487,118380.0,118370.0,0.05759]
[1753600000778,1.31869038,118380.0,118370.0,0.0607]
[1753600001028,1.24803595,118380.0,118370.0,0.0607]
[1753600001671,1.24805479,118380.0,118370.0,0.05759]
[1753600003079,1.24805429,118380.0,118370.0,0.05759]
[1753600004618,1.24805395,118380.0,118370.0,0.05759]
[1753600005787,1.24805372,118380.0,118370.0,0.05759]
[1753600006469,1.27578353,118380.0,118370.0,0.05759]
[1753600007356,1.42690737,118380.0,118370.0,0.0154]
[1753600007595,1.44290746,118380.0,118370.0,0.0004]
[1753600008048,0.76889242,118380.0,118370.0,0.0004]
[1753600008273,1.3996444,118380.0,118370.0,0.0004]
[1753600008753,1.39964371,118380.0,118370.0,0.0004]
[1753600009358,1.39964371,118380.0,118370.0,0.12956]
[1753600010428,1.39964261,118380.0,118370.0,0.12956]
[1753600011077,0.76889063,118380.0,118370.0,0.12956]
[1753600011509,1.39964261,118380.0,118370.0,0.12956]
[1753600012341,1.39964182,118380.0,118370.0,0.12956]
[1753600013004,1.38364182,118380.0,118370.0,0.12956]
[1753600013225,1.38364117,118380.0,118370.0,0.12956]
[1753600013966,1.38364045,118380.0,118370.0,0.12956]
[1753600014854,1.83264045,118380.0,118370.0,0.12956]
[1753600015466,1.83264045,118380.0,118370.0,0.0004]
[1753600015679,0.58756516,118370.0,118360.0,1e-08]
[1753600015888,0.58756516,118370.0,118360.0,0.12912001]
[1753600015889,1.37807135,118370.0,118360.0,0.12912001]
[1753600016099,1.37807135,118370.0,118360.0,1e-08]
[1753600016311,1.40345535,118370.0,118360.0,1e-08]
[1753600016518,1.48793265,118370.0,118360.0,1e-08]
[1753600016937,1.48993265,118370.0,118360.0,1e-08]
[1753600017404,1.61905265,118370.0,118360.0,1e-08]
[1753600018518,1.53457535,118370.0,118360.0,1e-08]
[1753600022179,1.52859794,118370.0,118360.0,1e-08]
[1753600022398,1.50490844,118370.0,118360.0,1e-08]
[1753600022628,1.53451915,118370.0,118360.0,1e-08]
[1753600024547,1.53451451,118370.0,118360.0,1e-08]
[1753600024751,1.61899181,118370.0,118360.0,1e-08]
[1753600026146,1.61899023,118370.0,118360.0,1e-08]
[1753600029221,0.98823825,118370.0,118360.0,1e-08]
[1753600029443,1.61899023,118370.0,118360.0,1e-08]
[1753600029878,1.61897835,118370.0,118360.0,1e-08]
[1753600030325,1.6130582,118370.0,118360.0,1e-08]
[1753600030549,1.61897589,118370.0,118360.0,1e-08]
[1753600033241,1.59530343,118370.0,118360.0,1e-08]
[1753600033472,1.61897517,118370.0,118360.0,1e-08]
[1753600033849,6.61897517,118370.0,118360.0,1e-08]
[1753600036193,6.61897856,118370.0,118360.0,1e-08]
[1753600039020,6.60319401,118370.0,118360.0,1e-08]
[1753600039158,6.61898323,118370.0,118360.0,1e-08]
[1753600039375,0.17742465,118360.0,118350.0,0.108469]
[1753600039587,0.89480393,118360.0,118350.0,0.110429]
[1753600039791,0.91059315,118360.0,118350.0,0.110429]
[1753600039987,0.94779962,118360.0,118350.0,0.110429]
[1753600040680,0.94779962,118360.0,118350.0,0.111429]
[1753600040870,0.97318362,118360.0,118350.0,0.111429]
[1753600041091,0.97318362,118360.0,118350.0,0.240549]
[1753600041419,0.88870632,118360.0,118350.0,0.240549]
[1753600043146,0.89734599,118360.0,118350.0,0.240549]
[1753600043538,0.90327212,118360.0,118350.0,0.240549]
[1753600044444,0.95333644,118360.0,118350.0,0.213669]
[1753600045478,0.95333644,118360.0,118350.0,0.238549]
[1753600046373,1.03781374,118360.0,118350.0,0.238549]
[1753600046588,0.95333644,118360.0,118350.0,0.238549]
[1753600047937,0.95334245,118360.0,118350.0,0.238549]
[1753600049810,0.9533492,118360.0,118350.0,0.238549]
[1753600050457,0.32259722,118360.0,118350.0,0.238549]
[1753600050636,0.9293592,118360.0,118350.0,0.238549]
[1753600050836,0.92762098,118360.0,118350.0,0.240579]
[1753600052668,1.01209828,118360.0,118350.0,0.240579]
[1753600053473,0.99569828,118360.0,118350.0,0.240579]
[1753600053678,0.99569865,118360.0,118350.0,0.240579]
[1753600065339,0.99570092,118360.0,118350.0,0.240579]
[1753600065516,1.08017822,118360.0,118350.0,0.240579]
[1753600066594,0.99570092,118360.0,118350.0,0.240579]
[1753600066913,0.99570296,118360.0,118350.0,0.240579]
[1753600068203,0.99570688,118360.0,118350.0,0.240579]
[1753600068432,1.02312688,118360.0,118350.0,0.240579]
[1753600071127,1.02312693,118360.0,118350.0,0.240579]
[1753600073336,0.39237495,118360.0,118350.0,0.240579]
[1753600073561,1.02312693,118360.0,118350.0,0.240579]
[1753600073982,1.02312695,118360.0,118350.0,0.240579]
[1753600076922,1.08834202,118360.0,118350.0,0.240579]
[1753600077778,1.02312695,118360.0,118350.0,0.240579]
[1753600081771,1.02312696,118360.0,118350.0,0.240579]
[1753600082980,0.99938867,118360.0,118350.0,0.240579]
[1753600083207,1.01719253,118360.0,118350.0,0.240579]
[1753600083436,1.00927971,118360.0,118350.0,0.240579]
[1753600083663,1.00730152,118360.0,118350.0,0.240579]
[1753600084316,0.99345407,118360.0,118350.0,0.240579]
[1753600084540,1.02312725,118360.0,118350.0,0.240579]
[1753600087516,1.01448762,118360.0,118350.0,0.240579]
[1753600089158,0.98706762,118360.0,118350.0,0.243749]
[1753600090091,0.98706762,118360.0,118350.0,0.258749]
[1753600090298,0.98491762,118360.0,118350.0,0.258749]
[1753600092055,0.98491762,118360.0,118350.0,0.243749]
[1753600092479,0.98700762,118360.0,118350.0,0.243749]
[1753600094724,0.99527872,118360.0,118350.0,0.243749]
[1753600095163,0.99527872,118360.0,118350.0,0.240579]
[1753600095940,1.01383049,118360.0,118350.0,0.240579]
[1753600098659,0.99527872,118360.0,118350.0,0.240579]
[1753600099968,1.02116872,118360.0,118350.0,0.240579]
[1753600109487,1.02116904,118360.0,118350.0,0.240579]
[1753600111072,1.00534315,118360.0,118350.0,0.240579]
[1753600111285,1.02116905,118360.0,118350.0,0.240579]
[1753600115321,1.02116905,118360.0,118350.0,0.238549]
[1753600120686,1.02116915,118360.0,118350.0,0.238549]
[1753600124819,1.08683888,118360.0,118350.0,0.238549]
[1753600126208,1.02116915,118360.0,118350.0,0.238549]
[1753600130262,1.021169,118360.0,118350.0,0.238549]
[1753600132703,1.02116895,118360.0,118350.0,0.238549]
[1753600138523,0.99834895,118360.0,118350.0,0.238549]
[1753600140755,0.9983489,118360.0,118350.0,0.238549]
[1753600141811,0.99834796,118360.0,118350.0,0.238549]
[1753600143329,0.99834737,118360.0,118350.0,0.238549]
[1753600144730,0.9686755,118360.0,118350.0,0.238549]
[1753600145185,0.98252122,118360.0,118350.0,0.238549]
[1753600145406,0.99834491,118360.0,118350.0,0.238549]
[1753600145820,0.9686755,118360.0,118350.0,0.238549]
[1753600147256,0.33792352,118360.0,118350.0,0.238549]
[1753600147489,0.9686755,118360.0,118350.0,0.238549]
[1753600148571,0.99043291,118360.0,118350.0,0.238549]
[1753600148997,0.99834469,118360.0,118350.0,0.238549]
[1753600150343,0.99834435,118360.0,118350.0,0.238549]
[1753600152444,0.99007325,118360.0,118350.0,0.238549]
[1753600153134,0.98216087,118360.0,118350.0,0.238549]
[1753600153377,1.01485231,118360.0,118350.0,0.238549]
[1753600156158,1.01485179,118360.0,118350.0,0.238549]
[1753600157668,1.39597005,118360.0,118350.0,0.213669]
[1753600158620,1.37967005,118360.0,118350.0,0.213669]
[1753600161279,1.37966902,118360.0,118350.0,0.213669]
[1753600163098,1.39883571,118360.0,118350.0,0.213669]
[1753600163562,1.37966902,118360.0,118350.0,0.213669]
[1753600169627,1.39711804,118360.0,118350.0,0.213389]
[1753600169865,1.41361804,118360.0,118350.0,0.213389]
[1753600173056,1.72899403,118360.0,118350.0,0.213389]
[1753600173432,1.41361465,118360.0,118350.0,0.213389]
[1753600173834,1.49809195,118360.0,118350.0,0.213389]
[1753600174464,1.50009195,118360.0,118350.0,0.213389]
[1753600174853,1.62889195,118360.0,118350.0,0.213389]
[1753600175526,1.54441465,118360.0,118350.0,0.213389]
[1753600175669,1.54441465,118360.0,118350.0,0.212389]
[1753600175879,1.54641465,118360.0,118350.0,0.212389]
[1753600182270,1.54640336,118360.0,118350.0,0.212389]
[1753600187960,1.54640525,118360.0,118350.0,0.212389]
[1753600188512,1.56462333,118360.0,118350.0,0.212389]
[1753600189226,1.54812333,118360.0,118350.0,0.212389]
[1753600195175,1.63260063,118360.0,118350.0,0.212389]
[1753600195377,1.54812333,118360.0,118350.0,0.212389]
[1753600196380,1.54812333,118360.0,118350.0,0.237109]
[1753600196694,1.51846976,118360.0,118350.0,0.237109]
[1753600196936,1.54812837,118360.0,118350.0,0.237109]
[1753600200166,1.54812879,118360.0,118350.0,0.237109]
[1753600201645,1.54812913,118360.0,118350.0,0.237109]
[1753600209102,1.54813078,118360.0,118350.0,0.237109]
[1753600209291,1.52638194,118360.0,118350.0,0.237109]
[1753600209489,1.52440389,118360.0,118350.0,0.237109]
[1753600209800,1.52638195,118360.0,118350.0,0.237109]
[1753600210110,1.54814048,118360.0,118350.0,0.237109]
[1753600210981,1.54814048,118360.0,118350.0,0.108269]
[1753600215260,1.54814048,118360.0,118350.0,0.103269]
[1753600217440,1.53952222,118360.0,118350.0,0.103269]
[1753600218978,1.58508083,118360.0,118350.0,0.103269]
[1753600221770,1.53952222,118360.0,118350.0,0.103269]
[1753600222188,1.40102136,118360.0,118350.0,0.103269]
[1753600222376,1.35488488,118360.0,118350.0,0.124449]
[1753600222601,1.35488754,118360.0,118350.0,0.124449]
[1753600223150,1.35489507,118360.0,118350.0,0.124449]
[1753600223980,1.35489507,118360.0,118350.0,0.108349]
[1753600223981,1.35690507,118360.0,118350.0,0.108349]
[1753600224425,1.48554507,118360.0,118350.0,0.108349]
[1753600227384,1.48554372,118360.0,118350.0,0.105409]
[1753600227582,1.57002102,118360.0,118350.0,0.105409]
[1753600227788,1.61461559,118360.0,118350.0,0.105409]
[1753600228824,1.53013829,118360.0,118350.0,0.105409]
[1753600229566,1.53013834,118360.0,118350.0,0.105409]
[1753600230743,1.02206871,118360.0,118350.0,0.139929]
[1753600230964,0.91522303,118360.0,118350.0,0.139929]
[1753600231205,0.9152203,118360.0,118350.0,0.139929]
[1753600231417,0.89939111,118360.0,118350.0,0.139929]
[1753600238820,1.2147671,118360.0,118350.0,0.139929]
[1753600241137,0.58401512,118360.0,118350.0,0.139929]
[1753600241650,1.2147671,118360.0,118350.0,0.139929]
[1753600247727,1.2169171,118360.0,118350.0,0.139929]
[1753600258670,1.2169171,118360.0,118350.0,0.136709]
[1753600260469,1.23274613,118360.0,118350.0,0.136709]
[1753600263044,1.23274667,118360.0,118350.0,0.136709]
[1753600263292,1.23274669,118360.0,118350.0,0.136709]
[1753600264363,1.23274669,118360.0,118350.0,0.121609]
[1753600270068,1.2169171,118360.0,118350.0,0.121609]
[1753600270288,1.23274673,118360.0,118350.0,0.121609]